bitfinex/quotes_SOLUSD_20251030
["timestamp","ask_amount","ask_price","bid_price","bid_amount"]
[1761785238632,1e-08,194.22,194.21,10.95572779]
[1761785239812,1e-08,194.22,194.21,31.54772779]
[1761785240012,1e-08,194.22,194.21,10.95572779]
[1761785241546,1e-08,194.22,194.21,31.54772779]
[1761785241715,1e-08,194.22,194.21,10.95572779]
[1761785241915,1e-08,194.22,194.21,31.54772779]
[1761785242124,1e-08,194.22,194.21,5.84906544]
[1761785242324,1e-08,194.22,194.21,10.93572779]
[1761785243928,1e-08,194.22,194.16,25.41046605]
[1761785243929,1e-08,194.22,194.2,5.14929573]
[1761785244440,1e-08,194.22,194.21,5.78666235]
[1761785244640,1e-08,194.22,194.21,10.93572779]
[1761785246239,0.2,194.27,194.26,0.14216157]
[1761785246447,0.2,194.27,194.26,5.78666235]
[1761785246754,0.2,194.27,194.26,10.93440249]
[1761785247846,0.2,194.27,194.26,20.86539175]
[1761785248054,0.2,194.27,194.26,10.93440249]
[1761785250985,1e-08,194.27,194.26,20.86539175]
[1761785251449,1e-08,194.27,194.26,23.34449071]
[1761785254467,1e-08,194.27,194.26,12.73350145]
[1761785254675,1e-08,194.27,194.26,13.41350145]
[1761785256281,1e-08,194.27,194.26,23.34449071]
[1761785266291,1e-08,194.27,194.26,12.73350145]
[1761785266589,1e-08,194.27,194.26,13.41350145]
[1761785267813,1e-08,194.27,194.26,23.34449071]
[1761785270337,1e-08,194.27,194.26,25.73974014]
[1761785270658,1e-08,194.27,194.26,33.32550145]
[1761785271534,1e-08,194.27,194.26,34.00550145]
[1761785271728,1e-08,194.27,194.26,34.52027546]
[1761785272332,1e-08,194.27,194.26,38.77961354]
[1761785272899,1e-08,194.27,194.26,34.00550145]
[1761785273806,1e-08,194.27,194.26,38.31352244]
[1761785274203,1e-08,194.27,194.26,34.00550145]
[1761785274614,1e-08,194.27,194.26,33.32550145]
[1761785275334,1e-08,194.27,194.26,28.92358613]
[1761785276036,1e-08,194.27,194.26,35.92034439]
[1761785276431,1e-08,194.27,194.26,45.85133365]
[1761785277922,1e-08,194.27,194.26,28.92358613]
[1761785278352,1e-08,194.27,194.26,29.62358613]
[1761785279029,1e-08,194.27,194.26,35.40557038]
[1761785279253,1e-08,194.27,194.26,29.62358613]
[1761785280136,1e-08,194.27,194.26,35.40557038]
[1761785281129,1e-08,194.27,194.26,34.70557038]
[1761785281516,0.66000001,194.27,194.26,5.14774014]
[1761785281742,0.66000001,194.27,194.25,9.47109419]
[1761785283332,0.66000001,194.27,194.25,12.65494018]
[1761785283529,1e-08,194.27,194.26,3.18384599]
[1761785283738,1e-08,194.27,194.26,8.20694037]
[1761785283935,1e-08,194.27,194.26,7.50694037]
[1761785284136,1e-08,194.27,194.26,3.18384599]
[1761785285128,0.66000001,194.27,194.25,9.47497704]
[1761785285524,0.66000001,194.27,194.24,12.65913367]
[1761785285753,0.66000001,194.27,194.24,9.47528768]
[1761785286151,0.66000001,194.27,194.23,9.47550461]
[1761785286152,3.843846,194.27,194.23,9.47550461]
[1761785286328,3.843846,194.27,194.23,5.14846105]
[1761785286527,0.66,194.26,194.23,5.14846105]
[1761785286725,0.66,194.26,194.23,9.47550461]
[1761785287151,0.66,194.26,194.23,5.14846105]
[1761785287456,0.66,194.26,194.23,8.33230704]
[1761785287663,1e-08,194.27,194.25,3.18384599]
[1761785287831,1e-08,194.27,194.26,3.18384599]
[1761785288358,0.66000001,194.27,194.25,7.51088955]
[1761785288534,0.66000001,194.27,194.25,3.18384599]
[1761785288737,0.66000001,194.27,194.24,7.51088955]
[1761785288950,0.66000001,194.27,194.25,4.32704356]
[1761785289242,0.66000001,194.27,194.26,5.14774014]
[1761785290254,0.66000001,194.27,194.26,9.4747837]
[1761785290570,1e-08,194.27,194.26,12.65862969]
[1761785290736,1e-08,194.27,194.26,8.33158613]
[1761785290936,1e-08,194.27,194.26,12.65862969]
[1761785292543,0.67000001,194.27,194.26,4.32704356]
[1761785292749,0.67000001,194.27,194.25,5.14796756]
[1761785292962,0.67000001,194.27,194.25,9.47501112]
[1761785293185,0.67000001,194.27,194.25,12.65885711]
[1761785293539,0.67000001,194.27,194.26,4.32704356]
[1761785293958,0.67000001,194.27,194.25,9.47501112]
[1761785294464,0.67000001,194.27,194.25,4.32704356]
[1761785294660,0.67000001,194.27,194.24,5.14819497]
[1761785294661,0.67000001,194.27,194.24,9.47523853]
[1761785295940,0.67000001,194.27,194.23,4.32704356]
[1761785295941,3.18384599,194.26,194.23,4.32704356]
[1761785296137,3.18384599,194.26,194.22,9.47573723]
[1761785296340,0.67000001,194.27,194.21,4.32704356]
[1761785296341,3.18384599,194.23,194.21,4.32704356]
[1761785296571,3.18384599,194.22,194.2,4.32704356]
[1761785296848,3.18384599,194.23,194.2,9.47635379]
[1761785297260,5.14750655,194.27,194.2,9.47635379]
[1761785297261,0.67,194.22,194.2,9.47635379]
[1761785297774,0.67,194.22,194.2,12.66019978]
[1761785297948,3.18384599,194.25,194.2,25.53352624]
[1761785298270,20.59200001,194.27,194.21,4.32704356]
[1761785298271,0.67,194.24,194.21,4.32704356]
[1761785298965,0.67,194.24,194.22,3.18384599]
[1761785299773,0.67,194.24,194.22,5.14880032]
[1761785300150,0.67,194.26,194.22,21.20464713]
[1761785301375,1e-08,194.27,194.24,3.18384599]
[1761785301554,0.67000001,194.27,194.24,3.18384599]
[1761785301756,1e-08,194.27,194.26,8.33158613]
[1761785303981,1e-08,194.27,194.26,13.31862969]
[1761785304367,1e-08,194.27,194.26,8.99158613]
[1761785304963,1e-08,194.27,194.26,18.92257539]
[1761785306074,1e-08,194.27,194.26,24.70455964]
[1761785306657,1e-08,194.27,194.26,18.92257539]
[1761785306857,1e-08,194.27,194.26,24.70455964]
[1761785310263,1e-08,194.27,194.26,15.7387294]
[1761785310481,1e-08,194.27,194.26,24.70455964]
[1761785311356,1e-08,194.27,194.26,23.55771482]
[1761785316382,1e-08,194.27,194.26,21.52071365]
[1761785316574,1e-08,194.27,194.26,23.55771482]
[1761785318882,1e-08,194.27,194.26,17.77573057]
[1761785319274,1e-08,194.27,194.26,23.54715554]
[1761785319475,1e-08,194.27,194.26,17.77573057]
[1761785320891,0.1,194.35,194.3,9.78882769]
[1761785321096,0.1,194.35,194.34,2.03700117]
[1761785321294,0.1,194.35,194.34,22.62900117]
[1761785321967,0.1,194.35,194.34,20.592]
[1761785322162,0.1,194.35,194.34,22.62900117]
[1761785322378,0.76,194.35,194.34,20.592]
[1761785322772,0.76,194.35,194.34,25.73762107]
[1761785324796,0.76,194.35,194.31,20.592]
[1761785324797,2.79700117,194.35,194.31,20.592]
[1761785324978,2.03700117,194.33,194.3,5.14668039]
[1761785325392,0.66,194.32,194.3,5.14668039]
[1761785325572,0.66,194.32,194.3,18.01338136]
[1761785326175,2.13700117,194.35,194.3,18.01338136]
[1761785326386,0.66,194.32,194.3,18.01338136]
[1761785326673,0.66,194.34,194.32,5.14615067]
[1761785326882,0.66,194.33,194.32,5.14615067]
[1761785327284,0.66,194.33,194.3,5.1464677]
[1761785328398,0.66,194.33,194.29,5.14694528]
[1761785328574,0.66,194.33,194.29,18.01430849]
[1761785329689,0.66,194.33,194.29,20.05130966]
[1761785330899,0.1,194.35,194.32,2.03700117]
[1761785331978,0.76,194.35,194.33,5.14588586]
[1761785332998,2.79700117,194.35,194.33,5.14588586]
[1761785333211,2.79700117,194.35,194.32,5.14612457]
[1761785333376,0.71,194.34,194.32,5.14612457]
[1761785334203,0.71,194.34,194.31,12.86548685]
[1761785334709,0.1,194.35,194.31,12.86548685]
[1761785334907,0.81,194.35,194.31,12.86548685]
[1761785335279,0.81,194.35,194.31,14.90248802]
[1761785335610,0.81,194.35,194.31,18.01190237]
[1761785335807,2.84700117,194.35,194.31,18.01190237]
[1761785336186,2.74700117,194.34,194.31,18.01190237]
[1761785336384,0.71,194.34,194.31,18.01190237]
[1761785336694,2.13700117,194.35,194.31,20.04890354]
[1761785336695,0.1,194.35,194.31,20.04890354]
[1761785336890,0.1,194.35,194.33,2.03700117]
[1761785337091,0.1,194.35,194.32,2.74700117]
[1761785337299,0.1,194.35,194.34,22.62900117]
[1761785337691,0.1,194.35,194.34,27.77462224]
[1761785340218,0.1,194.41,194.39,20.592]
[1761785340387,0.1,194.41,194.4,2.74700117]
[1761785340587,0.71,194.45,194.4,2.74700117]
[1761785340798,0.1,194.47,194.41,11.15536609]
[1761785341015,2.13700117,194.47,194.41,13.19236726]
[1761785341307,2.13700117,194.47,194.41,3.261378]
[1761785341514,0.1,194.47,194.41,13.19236726]
[1761785341808,1e-08,194.42,194.41,22.64582596]
[1761785342000,1e-08,194.42,194.41,16.29913441]
[1761785342315,1e-08,194.42,194.41,18.33613558]
[1761785342507,0.1,194.47,194.41,18.33613558]
[1761785342508,1e-08,194.43,194.42,10.64098926]
[1761785342810,1e-08,194.43,194.42,12.67799043]
[1761785343010,1e-08,194.43,194.42,33.26999043]
[1761785343234,1e-08,194.43,194.42,12.67799043]
[1761785343918,1e-08,194.43,194.42,17.82149418]
[1761785344213,1e-08,194.43,194.42,15.78449301]
[1761785344415,1e-08,194.43,194.42,17.82149418]
[1761785344611,0.1,194.48,194.45,20.592]
[1761785344811,0.1,194.48,194.47,11.96799043]
[1761785345190,0.1,194.48,194.47,12.67799043]
[1761785345989,0.1,194.48,194.47,5.14218131]
[1761785346187,0.1,194.48,194.47,7.17918248]
[1761785346393,0.1,194.48,194.47,5.14218131]
[1761785347491,0.1,194.48,194.47,5.85218131]
[1761785347694,0.1,194.48,194.47,5.14218131]
[1761785347893,0.1,194.48,194.46,7.17944691]
[1761785348122,0.1,194.48,194.46,7.88944691]
[1761785348534,2.74700117,194.47,194.44,5.14297469]
[1761785348815,2.03700117,194.45,194.44,5.14297469]
[1761785349004,0.71,194.46,194.43,5.14320757]
[1761785349207,2.03700117,194.44,194.42,25.73545756]
[1761785349748,0.71,194.46,194.42,25.73545756]
[1761785349912,2.74700117,194.46,194.42,25.73545756]
[1761785350113,2.74700117,194.46,194.42,38.59421694]
[1761785350420,0.1,194.48,194.45,22.62900117]
[1761785350609,0.1,194.48,194.46,23.85324574]
[1761785351312,0.1,194.48,194.46,20.592]
[1761785351828,0.1,194.48,194.46,25.73429137]
[1761785351829,2.84700117,194.48,194.46,25.73429137]
[1761785352299,2.74700117,194.47,194.46,25.73429137]
[1761785352506,0.81,194.48,194.46,25.73429137]
[1761785352703,0.1,194.48,194.46,25.73429137]
[1761785353026,0.1,194.48,194.47,33.62204699]
[1761785353027,1e-08,194.48,194.47,33.62204699]
[1761785353206,1e-08,194.48,194.47,33.76420856]
[1761785354237,1e-08,194.49,194.48,10.62098926]
[1761785354422,1e-08,194.49,194.48,12.65799043]
[1761785354908,1e-08,194.49,194.48,2.86916274]
[1761785355108,1e-08,194.49,194.48,12.65799043]
[1761785355309,1e-08,194.49,194.48,11.96799043]
[1761785355908,1e-08,194.49,194.48,20.592]
[1761785356217,1e-08,194.49,194.48,25.7339169]
[1761785357312,1e-08,194.49,194.48,26.4239169]
[1761785357513,1e-08,194.49,194.48,25.7339169]
[1761785357723,1e-08,194.49,194.48,38.39190733]
[1761785358511,1e-08,194.49,194.48,28.60307964]
[1761785358912,1e-08,194.49,194.48,38.39190733]
[1761785361305,1e-08,194.49,194.48,35.66490616]
[1761785361715,1e-08,194.49,194.48,25.7339169]
[1761785363839,1e-08,194.49,194.48,5.1419169]
[1761785363840,2.70700118,194.49,194.48,5.1419169]
[1761785364055,2.70700118,194.49,194.43,18.0007281]
[1761785364251,2.03700117,194.46,194.43,18.0007281]
[1761785364414,2.03700117,194.45,194.43,5.14323921]
[1761785364617,2.03700117,194.44,194.43,5.14323921]
[1761785364940,2.03700117,194.44,194.38,13.05028507]
[1761785364941,0.67,194.48,194.42,20.592]
[1761785365144,0.67,194.48,194.39,18.0050414]
[1761785365145,2.03700117,194.45,194.4,0.51440329]
[1761785365313,5.0874661,194.45,194.4,0.51440329]
[1761785365513,5.7574661,194.45,194.42,20.592]
[1761785365928,1e-08,194.49,194.44,20.592]
[1761785365929,5.0874661,194.47,194.44,20.592]
[1761785366212,5.0874661,194.46,194.44,20.592]
[1761785366411,5.7574661,194.46,194.43,20.592]
[1761785366628,5.0874661,194.46,194.43,20.592]
[1761785366832,5.0874661,194.46,194.44,5.14297469]
[1761785367220,5.7574661,194.46,194.44,5.14297469]
[1761785367527,5.7574661,194.45,194.43,25.73517574]
[1761785369416,5.0874661,194.45,194.43,25.73517574]
[1761785369616,5.7574661,194.44,194.43,25.73517574]
[1761785370029,5.0874661,194.44,194.43,25.73517574]
[1761785370435,5.0874661,194.45,194.43,25.73517574]
[1761785371136,5.0874661,194.46,194.43,38.59327377]
[1761785371339,7.57779331,194.46,194.43,38.59327377]
[1761785371510,1e-08,194.49,194.45,17.99948572]
[1761785371831,7.57779332,194.49,194.45,17.99948572]
[1761785372134,7.57779331,194.48,194.45,17.99948572]
[1761785372339,7.57779331,194.47,194.45,5.1427102]
[1761785372640,8.24779331,194.47,194.45,5.1427102]
[1761785373035,8.24779331,194.46,194.45,5.1427102]
[1761785373237,7.57779331,194.46,194.45,5.1427102]
[1761785373544,7.57779331,194.46,194.44,5.14297469]
[1761785376037,7.57779331,194.47,194.44,5.14297469]
[1761785376422,8.24779331,194.47,194.44,5.14297469]
[1761785378276,1e-08,194.49,194.45,0.71]
[1761785378434,1e-08,194.49,194.48,7.57779331]
[1761785378824,1e-08,194.49,194.48,8.28779331]
[1761785379567,1e-08,194.49,194.48,18.21878257]
[1761785380350,1e-08,194.49,194.48,23.36069947]
[1761785380946,1e-08,194.49,194.48,22.65069947]
[1761785381366,1e-08,194.49,194.48,33.12436743]
[1761785381774,0.1,194.51,194.5,30.38082769]
[1761785382082,0.1,194.51,194.5,31.03712807]
[1761785382255,0.1,194.51,194.5,44.46630955]
[1761785382574,1e-08,194.51,194.5,44.46630955]
[1761785383062,1e-08,194.51,194.5,36.88851624]
[1761785383283,1e-08,194.51,194.5,44.46630955]
[1761785383461,1e-08,194.51,194.5,25.73338817]
[1761785383775,1e-08,194.51,194.5,33.31118148]
[1761785383967,1e-08,194.51,194.5,34.02118148]
[1761785384947,1e-08,194.51,194.5,26.44338817]
[1761785385175,1e-08,194.51,194.5,34.02118148]
[1761785387374,1e-08,194.51,194.5,29.61942788]
[1761785387877,1e-08,194.51,194.5,28.90942788]
[1761785388572,1e-08,194.51,194.5,25.73338817]
[1761785388756,0.67000001,194.51,194.5,25.73338817]
[1761785389146,1e-08,194.51,194.5,25.73338817]
[1761785391054,1e-08,194.51,194.5,26.44338817]
[1761785391261,1e-08,194.51,194.5,29.61942788]
[1761785391961,1e-08,194.51,194.5,39.55041714]
[1761785392167,1e-08,194.51,194.5,23.25021882]
[1761785392477,1e-08,194.51,194.5,23.24804832]
[1761785392680,1e-08,194.51,194.5,22.13445685]
[1761785394075,1e-08,194.51,194.5,27.88071069]
[1761785394457,1e-08,194.51,194.5,22.13445685]
[1761785394986,1e-08,194.51,194.5,15.78237743]
[1761785395165,1e-08,194.51,194.5,23.24604521]
[1761785395554,1e-08,194.51,194.5,18.95841714]
[1761785396077,1e-08,194.51,194.5,23.24592133]
[1761785396890,1e-08,194.51,194.5,22.53592133]
[1761785397057,1e-08,194.51,194.5,30.02089236]
[1761785397261,1e-08,194.51,194.5,29.61942788]
[1761785397476,1e-08,194.51,194.5,9.02742788]
[1761785397683,1e-08,194.51,194.5,28.90942788]
[1761785398308,1e-08,194.51,194.5,25.73338817]
[1761785399462,0.69000001,194.51,194.5,25.73338817]
[1761785400868,1e-08,194.51,194.5,25.73338817]
[1761785401288,1e-08,194.51,194.5,30.13356669]
[1761785401471,1e-08,194.51,194.5,9.54156669]
[1761785401963,1e-08,194.51,194.5,9.02742788]
[1761785402164,1e-08,194.51,194.5,5.14138817]
[1761785402382,0.69000001,194.51,194.5,25.73338817]
[1761785402682,1e-08,194.51,194.5,25.73338817]
[1761785403184,0.69000001,194.51,194.49,5.14165252]
[1761785403762,0.69000001,194.51,194.48,9.76366796]
[1761785403763,3.86603972,194.51,194.48,9.76366796]
[1761785403963,3.17603971,194.49,194.48,9.76366796]
[1761785404398,3.86603971,194.49,194.48,14.90558486]
[1761785404691,3.86603971,194.49,194.48,9.76366796]
[1761785406992,3.86603971,194.49,194.48,14.90558486]
[1761785407287,3.86603971,194.49,194.48,9.76366796]
[1761785407487,9.00769223,194.49,194.38,4.8019604]
[1761785407691,3.17603971,194.41,194.38,5.14452751]
[1761785407872,3.17603971,194.42,194.4,20.592]
[1761785408071,3.17603971,194.43,194.4,20.592]
[1761785408271,3.17603971,194.41,194.38,5.14452751]
[1761785408483,3.17603971,194.43,194.38,18.005933]
[1761785408684,3.17603971,194.43,194.38,42.48397271]
[1761785408880,3.17603971,194.43,194.39,0.71]
[1761785409077,3.86603971,194.43,194.38,42.48397271]
[1761785409479,3.86603971,194.43,194.38,39.307933]
[1761785409698,28.9094598,194.5,194.38,39.307933]
[1761785409699,3.86603971,194.42,194.38,25.73652751]
[1761785410078,3.86603971,194.42,194.38,38.597933]
[1761785410892,3.17603971,194.43,194.38,39.307933]
[1761785411093,0.69,194.44,194.38,39.307933]
[1761785411410,3.86603971,194.46,194.41,18.00318913]
[1761785411769,3.17603971,194.48,194.42,3.88603971]
[1761785411974,3.86603971,194.49,194.44,20.592]
[1761785412383,0.69,194.48,194.44,20.592]
[1761785412577,3.89603971,194.48,194.44,20.592]
[1761785412786,3.89603971,194.48,194.42,23.76803971]
[1761785412992,3.89603971,194.48,194.42,24.47803971]
[1761785413317,3.89603971,194.48,194.45,20.592]
[1761785413503,3.89603971,194.48,194.45,25.73465109]
[1761785413872,3.89603971,194.48,194.45,38.59142661]
[1761785414805,3.89603971,194.48,194.45,25.73465109]
[1761785414975,3.17603971,194.47,194.45,25.73465109]
[1761785415298,0.72,194.48,194.45,38.59142661]
[1761785415502,3.17603971,194.49,194.45,39.30142661]
[1761785415803,3.89603971,194.5,194.45,39.30142661]
[1761785416020,0.72,194.5,194.45,39.10569763]
[1761785416175,3.17603971,194.47,194.45,20.592]
[1761785416375,3.17603971,194.46,194.43,5.14323921]
[1761785416591,3.17603971,194.45,194.43,5.14323921]
[1761785416795,3.17603971,194.45,194.43,18.00133724]
[1761785417329,3.17603971,194.46,194.43,18.00133724]
[1761785417922,3.89603971,194.46,194.43,18.00133724]
[1761785418823,3.17603971,194.44,194.43,5.14323921]
[1761785418998,3.17603971,194.44,194.4,12.8594888]
[1761785419199,3.89603971,194.43,194.4,12.8594888]
[1761785420522,3.17603971,194.43,194.4,12.8594888]
[1761785421120,3.17603971,194.46,194.41,0.71]
[1761785421293,3.17603971,194.46,194.41,3.88603971]
[1761785421494,3.17603971,194.48,194.43,20.592]
[1761785421796,3.17603971,194.46,194.4,16.03552851]
[1761785421997,0.72,194.47,194.4,33.4514888]
[1761785421998,3.17603971,194.45,194.4,33.4514888]
[1761785422512,3.84603971,194.45,194.4,38.59552172]
[1761785422889,3.84603971,194.45,194.4,39.27552172]
[1761785423092,3.84603971,194.45,194.4,38.59552172]
[1761785423285,3.17603971,194.45,194.41,0.68]
[1761785423510,3.17603971,194.46,194.41,0.68]
[1761785423708,3.17603971,194.47,194.42,3.17603971]
[1761785423908,3.84603971,194.47,194.42,3.85603971]
[1761785424511,3.84603971,194.47,194.43,18.00133724]
[1761785424710,3.84603971,194.47,194.43,38.59333724]
[1761785425408,3.17603971,194.45,194.43,38.59333724]
[1761785425607,3.17603971,194.44,194.43,5.14323921]
[1761785425915,3.17603971,194.44,194.42,5.1434445]
[1761785426239,3.84603971,194.43,194.42,5.1434445]
[1761785427017,3.84603971,194.43,194.4,25.73579717]
[1761785427226,3.84603971,194.43,194.41,20.592]
[1761785427406,3.17603971,194.43,194.41,20.592]
[1761785428602,3.84603971,194.43,194.4,38.59587947]
[1761785431531,3.17603971,194.43,194.4,39.27587947]
[1761785431909,3.17603971,194.43,194.4,38.59587947]
[1761785432112,3.84603971,194.43,194.4,38.59587947]
[1761785432517,3.17603971,194.42,194.4,38.59587947]
[1761785432704,3.17603971,194.43,194.4,39.27587947]
[1761785433338,2.03530798,194.43,194.4,39.27587947]
[1761785434001,0.67,194.49,194.41,0.68]
[1761785434209,2.03530798,194.48,194.42,2.03530798]
[1761785434611,2.03530798,194.46,194.41,2.71530798]
[1761785434924,2.03530798,194.45,194.41,0.68]
[1761785435338,2.03530798,194.45,194.42,5.14350375]
[1761785435916,2.03530798,194.45,194.42,18.68226313]
[1761785437616,2.03530798,194.46,194.43,0.68]
[1761785437820,0.67,194.5,194.43,0.68]
[1761785438040,2.03530798,194.47,194.43,0.68]
[1761785438632,2.03530798,194.46,194.43,0.68]
[1761785438828,2.03530798,194.46,194.42,18.00226313]
[1761785439039,2.03530798,194.43,194.42,5.14350375]
[1761785439418,2.70530798,194.43,194.42,5.14350375]
[1761785439621,2.03530798,194.43,194.41,5.14376832]
[1761785440447,2.03530798,194.42,194.41,5.14376832]
[1761785442240,0.67,194.43,194.41,5.14376832]
[1761785442241,2.70530798,194.43,194.41,5.14376832]
[1761785442439,2.03530798,194.43,194.41,5.14376832]
[1761785442640,2.03530798,194.44,194.41,18.00318913]
[1761785443752,2.03530798,194.43,194.41,18.00318913]
[1761785443947,2.70530798,194.43,194.41,18.00318913]
[1761785444748,2.03530798,194.43,194.41,18.00318913]
[1761785446251,2.03530798,194.44,194.41,18.00318913]
[1761785446452,2.03530798,194.43,194.41,5.14376832]
[1761785446632,107.24195278,194.48,194.4,5.1440183]
[1761785446633,2.03530798,194.42,194.4,5.1440183]
[1761785446829,2.03530798,194.41,194.4,5.1440183]
[1761785447244,2.70530798,194.41,194.4,5.1440183]
[1761785447946,2.03530798,194.41,194.4,5.1440183]
[1761785448324,2.70530798,194.41,194.39,5.14429754]
[1761785451428,2.03530798,194.41,194.39,5.14429754]
[1761785452737,2.03530798,194.4,194.39,5.14429754]
[1761785452941,2.03530798,194.4,194.38,9.43199256]
[1761785452942,2.72530798,194.4,194.38,9.43199256]
[1761785453138,2.72530798,194.4,194.38,5.14447111]
[1761785453342,2.72530798,194.4,194.38,25.73647111]
[1761785453547,2.72530798,194.39,194.38,5.14447111]
[1761785454255,2.72530798,194.39,194.36,5.14509158]
[1761785454446,2.03530798,194.37,194.36,5.14509158]
[1761785455365,2.03530798,194.37,194.35,18.00814191]
[1761785457160,2.03530798,194.37,194.35,5.14535631]
[1761785457373,2.72530798,194.37,194.35,5.14535631]
[1761785457670,2.03530798,194.37,194.35,5.14535631]
[1761785458043,2.72530798,194.37,194.35,5.14535631]
[1761785458473,2.72530798,194.37,194.34,5.14562107]
[1761785458974,2.72530798,194.37,194.34,9.45252228]
[1761785459271,2.72530798,194.36,194.34,5.14562107]
[1761785459663,2.03530798,194.36,194.34,5.14562107]
[1761785460275,2.72530798,194.35,194.34,5.14562107]
[1761785460456,2.72530798,194.35,194.33,9.45272047]
[1761785460769,2.03530798,194.34,194.33,25.73781926]
[1761785462482,2.03530798,194.35,194.33,25.73781926]
[1761785463462,0.69,194.37,194.33,25.73781926]
[1761785463684,2.03530798,194.35,194.33,25.73781926]
[1761785464583,2.72530798,194.35,194.31,0.67]
[1761785464749,2.03530798,194.4,194.31,0.67]
[1761785464750,2.03530798,194.32,194.31,5.14637727]
[1761785465259,2.03530798,194.33,194.31,5.14637727]
[1761785467463,102.1,194.39,194.32,0.67]
[1761785467675,102.1,194.39,194.33,2.03530798]
[1761785467676,104.13530798,194.39,194.33,2.03530798]
[1761785467882,2.03530798,194.42,194.36,2.03530798]
[1761785468259,2.72530798,194.41,194.35,21.262]
[1761785468475,2.03530798,194.38,194.36,20.592]
[1761785468781,2.03530798,194.38,194.37,5.14482687]
[1761785468980,2.03530798,194.39,194.37,5.14482687]
[1761785469198,0.69,194.4,194.37,5.14482687]
[1761785469199,2.03530798,194.4,194.37,5.14482687]
[1761785469375,102.1,194.45,194.38,0.67]
[1761785469376,2.03530798,194.43,194.38,0.67]
[1761785469881,2.03530798,194.42,194.38,0.67]
[1761785470083,2.03530798,194.41,194.37,18.00689406]
[1761785470275,2.03530798,194.4,194.37,18.00689406]
[1761785470472,2.72530798,194.4,194.37,18.00689406]
[1761785470673,2.03530798,194.4,194.37,18.67689406]
[1761785471788,2.03530798,194.39,194.37,5.14482687]
[1761785471989,2.03530798,194.38,194.37,5.14482687]
[1761785472173,2.72530798,194.38,194.37,5.14482687]
[1761785472481,2.03530798,194.38,194.37,5.14482687]
[1761785473254,2.03530798,194.39,194.37,5.14482687]
[1761785473886,2.03530798,194.38,194.36,5.14509158]
[1761785474084,2.03530798,194.37,194.36,5.14509158]
[1761785474693,2.74530798,194.37,194.34,5.14562107]
[1761785475001,2.03530798,194.35,194.34,5.14562107]
[1761785476097,0.71,194.37,194.34,18.72967376]
[1761785476098,2.03530798,194.37,194.34,18.72967376]
[1761785477061,2.03530798,194.37,194.34,18.00967376]
[1761785477264,2.03530798,194.35,194.34,18.00967376]
[1761785477572,2.03530798,194.35,194.34,5.14562107]
[1761785478089,2.74530798,194.35,194.3,0.92]
[1761785478262,2.03530798,194.33,194.3,0.92]
[1761785478465,2.03530798,194.34,194.31,18.73245432]
[1761785478672,2.03530798,194.34,194.31,18.01245432]
[1761785478886,2.03530798,194.33,194.31,18.01245432]
[1761785479281,2.03530798,194.32,194.31,5.14641552]
[1761785480162,0.71,194.38,194.31,18.01245432]
[1761785480487,2.03530798,194.36,194.32,0.72]
[1761785480686,2.03530798,194.37,194.32,0.72]
[1761785480868,2.03530798,194.36,194.32,0.72]
[1761785481668,2.03530798,194.36,194.31,18.01245432]
[1761785481669,2.03530798,194.35,194.31,18.01245432]
[1761785481866,2.03530798,194.33,194.31,18.01245432]
[1761785482067,2.03530798,194.32,194.31,5.14641552]
[1761785483971,2.75530798,194.32,194.3,0.2]
[1761785484190,2.75530798,194.31,194.3,0.2]
[1761785485389,2.75530798,194.31,194.3,5.34668039]
[1761785486776,2.75530798,194.31,194.3,0.2]
[1761785488578,2.03530798,194.31,194.3,0.2]
[1761785488779,2.03530798,194.31,194.3,5.34668039]
[1761785491195,2.03530798,194.32,194.3,5.34668039]
[1761785491585,0.72,194.32,194.3,5.34668039]
[1761785491784,2.03530798,194.33,194.3,5.34668039]
[1761785492098,2.75530798,194.32,194.3,0.2]
[1761785493801,0.72,194.31,194.3,0.2]
[1761785493998,2.03530798,194.31,194.3,0.2]
[1761785494502,2.75530798,194.32,194.3,5.34668039]
[1761785495002,2.03530798,194.33,194.31,0.72]
[1761785495308,105.28337906,194.35,194.31,0.72]
[1761785495608,102.1,194.35,194.32,5.14615067]
[1761785495930,3.90337906,194.37,194.32,5.14615067]
[1761785496095,3.90337906,194.37,194.33,0.72]
[1761785496510,0.72,194.36,194.32,5.14615067]
[1761785496881,3.18337906,194.37,194.32,18.01152736]
[1761785497088,3.18337906,194.38,194.33,0.72]
[1761785497684,3.18337906,194.39,194.34,5.14562107]